fUSD/lending_fUSD_20250629
["ID","MTS","AMOUNT","RATE_DAILY","PERIOD"]
[368519320,1751194319467,-1393.39,0.00029861,3]
[368519321,1751194319477,-1144.96,0.00029861,3]
[368519322,1751194319486,-1657.47,0.00029861,3]
[368519323,1751194319496,-534.8,0.00029861,3]
[368519324,1751194319505,-1096.85,0.00029861,3]
[368519325,1751194319515,-1495.26,0.00029861,3]
[368519326,1751194319524,-2028.27,0.00029861,3]
[368519327,1751194319534,-892.04,0.00029861,3]
[368519328,1751194319543,-800.8,0.00029861,3]
[368519329,1751194319553,-563.11,0.00029861,3]
[368519330,1751194319771,-803.4,0.00029861,3]
[368519331,1751194319781,-490.0,0.00029861,3]
[368519332,1751194319791,-1032.49,0.00029861,3]
[368519333,1751194319801,-818.54,0.00029861,3]
[368519334,1751194319811,-490.0,0.00029861,3]
[368519335,1751194319821,-1748.61,0.00029861,3]
[368519336,1751194319830,-583.52,0.00029861,3]
[368519337,1751194319840,-1254.67,0.00029861,3]
[368519338,1751194319850,-1561.33,0.00029861,3]
[368519339,1751194319860,-717.28,0.00029861,3]
[368519340,1751194319869,-1235.81,0.00029861,3]
[368519341,1751194319879,-709.31,0.00029861,3]
[368519342,1751194319888,-1584.73,0.00029861,3]
[368519343,1751194319897,-1927.49,0.00029861,3]
[368519344,1751194319907,-1391.05,0.00029861,3]
[368519345,1751194319916,-921.6,0.00029861,3]
[368519346,1751194319926,-275.02874107,0.00029861,3]
[368519347,1751194319935,-546.89,0.00029861,3]
[368519348,1751194319945,-1532.66,0.00029861,3]
[368519349,1751194319955,-1121.28,0.00029861,3]
[368519350,1751194319965,-1915.65,0.00029861,3]
[368519351,1751194319978,-490.0,0.00029861,3]
[368519352,1751194319987,-490.0,0.00029861,3]
[368519353,1751194319997,-640.3,0.00029861,3]
[368519354,1751194320007,-496.11,0.00029861,3]
[368519355,1751194320018,-1207.27,0.00029861,3]
[368519356,1751194320027,-1080.57,0.00029861,3]
[368519357,1751194320037,-1626.37,0.00029861,3]
[368519358,1751194320048,-490.0,0.00029861,3]
[368519359,1751194320058,-1384.15,0.00029861,3]
[368519360,1751194320067,-627.27,0.00029861,3]
[368519361,1751194320076,-490.0,0.00029861,3]
[368519362,1751194320086,-964.86,0.00029861,3]
[368519363,1751194320095,-1224.5,0.00029861,3]
[368519364,1751194320104,-1005.99,0.00029861,3]
[368519365,1751194320114,-1042.94,0.00029861,3]
[368519366,1751194320124,-490.0,0.00029861,3]
[368519367,1751194320133,-490.0,0.00029861,3]
[368519368,1751194320143,-490.0,0.00029862,3]
[368519369,1751194320153,-240.98404219,0.00029862,3]
[368519370,1751194320164,-511.67222976,0.00029862,3]
[368519371,1751194320175,-490.0,0.00029862,3]
[368519372,1751194320185,-490.0,0.00029862,3]
[368519373,1751194320195,-490.0,0.00029862,3]
[368519374,1751194320205,-490.0,0.00029862,3]
[368519375,1751194320215,-490.0,0.00029862,3]
[368519376,1751194320226,-490.0,0.00029862,3]
[368519377,1751194320235,-490.0,0.00029862,3]
[368519378,1751194320246,-490.0,0.00029862,3]
[368519379,1751194320256,-686.32,0.00029862,3]
[368519380,1751194320265,-490.0,0.00029862,3]
[368519381,1751194320275,-690.4,0.00029862,3]
[368519382,1751194320285,-490.0,0.00029862,3]
[368519383,1751194320296,-513.52,0.00029862,3]
[368519384,1751194320306,-490.0,0.00029862,3]
[368519385,1751194320316,-490.0,0.00029862,3]
[368519386,1751194320327,-600.29,0.00029862,3]
[368519387,1751194320339,-490.0,0.00029862,3]
[368519388,1751194320350,-490.0,0.00029862,3]
[368519389,1751194320360,-490.0,0.00029862,3]
[368519390,1751194320370,-490.0,0.00029862,3]
[368519391,1751194320379,-490.0,0.00029862,3]
[368519392,1751194320389,-490.0,0.00029862,3]
[368519393,1751194320398,-229.65973399,0.00029862,3]
[368519394,1751194320407,-490.0,0.00029862,3]
[368519395,1751194320416,-492.71,0.00029862,3]
[368519396,1751194320425,-490.0,0.00029862,3]
[368519397,1751194320435,-490.0,0.00029862,3]
[368519398,1751194320444,-490.0,0.00029863,3]
[368519399,1751194320454,-490.0,0.00029863,3]
[368519400,1751194320464,-153.255391,0.00029863,3]
[368519401,1751194320473,-329.205099,0.00029863,3]
[368519402,1751194320483,-490.0,0.00029863,3]
[368519403,1751194320492,-490.0,0.00029863,3]
[368519404,1751194320502,-490.0,0.00029863,3]
[368519405,1751194320511,-490.0,0.00029863,3]
[368519406,1751194320520,-490.0,0.00029863,3]
[368519407,1751194320529,-490.0,0.00029863,3]
[368519408,1751194320538,-490.0,0.00029863,3]
[368519409,1751194320547,-490.0,0.00029863,3]
[368519410,1751194320557,-554.36,0.00029863,3]
[368519411,1751194320566,-490.0,0.00029863,3]
[368519412,1751194320575,-490.0,0.00029863,3]
[368519413,1751194320584,-490.0,0.00029863,3]
[368519414,1751194320593,-490.0,0.00029863,3]
[368519415,1751194320603,-632.51,0.00029863,3]
[368519416,1751194320612,-490.0,0.00029863,3]
[368519417,1751194320621,-532.4,0.00029863,3]
[368519418,1751194320631,-610.85616054,0.00029863,3]
[368519419,1751194320640,-508.12,0.00029863,3]
[368519420,1751194320649,-490.0,0.00029863,3]
[368519421,1751194320660,-490.0,0.00029863,3]
[368519422,1751194320670,-701.73,0.00029863,3]
[368519423,1751194320679,-490.0,0.00029863,3]
[368519424,1751194320689,-490.0,0.00029863,3]
[368519425,1751194320699,-407.56199595,0.00029863,3]
[368519426,1751194320708,-764.95,0.00029863,3]
[368519427,1751194320718,-490.0,0.00029863,3]
[368519428,1751194320727,-490.0,0.00029863,3]
[368519429,1751194320737,-490.0,0.00029863,3]
[368519430,1751194320746,-490.0,0.00029863,3]
[368519431,1751194320756,-953.82,0.00029863,3]
[368519432,1751194320765,-491.53,0.00029863,3]
[368519433,1751194320775,-490.0,0.00029863,3]
[368519434,1751194320784,-603.44,0.00029863,3]
[368519435,1751194320794,-633.93,0.00029863,3]
[368519436,1751194320803,-490.0,0.00029863,3]
[368519437,1751194320812,-864.91,0.00029863,3]
[368519438,1751194320822,-490.0,0.00029863,3]
[368519439,1751194320832,-497.74,0.00029863,3]
[368519440,1751194320841,-1014.77841718,0.00029863,9]
[368519441,1751194320850,-490.0,0.00029863,3]
[368519442,1751194320860,-490.0,0.00029863,3]
[368519443,1751194320869,-490.0,0.00029863,3]
[368519444,1751194320879,-490.0,0.00029863,3]
[368519445,1751194320888,-756.13,0.00029863,3]
[368519446,1751194320897,-542.44,0.00029863,3]
[368519447,1751194320907,-1332.54,0.00029863,3]
[368519448,1751194320916,-863.82,0.00029863,3]
[368519449,1751194320925,-591.84,0.00029863,3]
[368519450,1751194320935,-490.0,0.00029863,3]
[368519451,1751194320944,-490.0,0.00029863,3]
[368519452,1751194320953,-665.61,0.00029863,3]
[368519453,1751194320962,-769.64,0.00029863,3]
[368519454,1751194320971,-490.0,0.00029863,3]
[368519455,1751194320983,-555.79,0.00029863,3]
[368519456,1751194320995,-490.0,0.00029863,3]
[368519457,1751194321005,-490.0,0.00029863,3]
[368519458,1751194321015,-491.22,0.00029863,3]
[368519459,1751194321024,-627.43,0.00029863,3]
[368519460,1751194321033,-490.0,0.00029863,3]
[368519461,1751194321043,-617.55,0.00029863,3]
[368519462,1751194321052,-490.0,0.00029863,3]
[368519463,1751194321062,-1124.81,0.00029863,3]
[368519464,1751194321072,-621.58,0.00029863,3]
[368519465,1751194321081,-1265.66,0.00029863,3]
[368519466,1751194321090,-1066.44,0.00029863,3]
[368519467,1751194321099,-490.0,0.00029863,3]
[368519468,1751194321108,-606.66,0.00029863,3]
[368519469,1751194321118,-1075.06,0.00029863,3]
[368519470,1751194321127,-1063.39,0.00029863,3]
[368519471,1751194321136,-596.29,0.00029863,3]
[368519472,1751194321145,-490.0,0.00029863,3]
[368519473,1751194321154,-490.0,0.00029863,3]
[368519474,1751194321163,-620.94,0.00029863,3]
[368519475,1751194321172,-490.0,0.00029863,3]
[368519476,1751194321183,-490.0,0.00029863,3]
[368519477,1751194321193,-696.19,0.00029863,3]
[368519478,1751194321202,-667.18,0.00029863,3]
[368519479,1751194321212,-684.75,0.00029863,3]
[368519480,1751194321223,-687.84,0.00029863,3]
[368519481,1751194321234,-490.0,0.00029863,3]
[368519482,1751194321244,-1683.35,0.00029863,3]
[368519483,1751194321254,-884.56,0.00029863,3]
[368519484,1751194321266,-521.5,0.00029863,3]
[368519485,1751194321276,-925.73,0.00029863,3]
[368519486,1751194321285,-1254.49,0.00029863,3]
[368519487,1751194321295,-558.94,0.00029863,3]
[368519488,1751194321305,-490.0,0.00029863,3]
[368519489,1751194321320,-1250.48,0.00029863,3]
[368519490,1751194321339,-490.0,0.00029863,3]
[368519491,1751194321354,-681.06,0.00029863,3]
[368519492,1751194321363,-500.0,0.00029863,3]
[368519493,1751194321373,-150.0,0.00029863,3]
[368519494,1751194321382,-490.0,0.00029863,3]
[368519495,1751194321392,-1517.03,0.00029863,3]
[368519496,1751194321402,-877.54,0.00029863,3]
[368519497,1751194321412,-150.0,0.00029863,3]
[368519498,1751194321422,-490.0,0.00029863,3]
[368519499,1751194321432,-500.0,0.00029863,3]
[368519500,1751194321444,-490.0,0.00029863,3]
[368519501,1751194321455,-490.0,0.00029863,3]
[368519502,1751194321465,-500.0,0.00029863,3]
[368519503,1751194321474,-760.76,0.00029863,3]
[368519504,1751194321483,-206.33968654,0.00029863,3]
[368519505,1751194321492,-490.0,0.00029863,3]
[368519506,1751194321502,-586.92,0.00029863,3]
[368519507,1751194321513,-490.0,0.00029863,3]
[368519508,1751194321522,-160.99841966,0.00029863,3]
[368519509,1751194321532,-1020.66,0.00029863,3]
[368519510,1751194321542,-1288.09,0.00029863,3]
[368519511,1751194321553,-1866.57,0.00029863,3]
[368519512,1751194321563,-776.5,0.00029863,3]
[368519513,1751194321572,-490.0,0.00029863,3]
[368519514,1751194321582,-490.0,0.00029863,3]
[368519515,1751194321591,-640.5,0.00029863,3]
[368519516,1751194321602,-499.32,0.00029863,3]
[368519517,1751194321612,-689.12,0.00029863,3]
[368519518,1751194321622,-759.09,0.00029863,3]
[368519519,1751194321632,-622.49,0.00029863,3]
[368519520,1751194321641,-930.36,0.00029863,3]
[368519521,1751194321651,-490.0,0.00029863,3]
[368519522,1751194321663,-936.48,0.00029863,3]
[368519523,1751194321674,-490.0,0.00029863,3]
[368519524,1751194321684,-1920.98,0.00029863,3]
[368519525,1751194321693,-490.0,0.00029863,3]
[368519526,1751194321703,-814.04,0.00029863,3]
[368519527,1751194321713,-1148.44,0.00029863,3]
[368519528,1751194321722,-1544.17,0.00029863,3]
[368519529,1751194321732,-1773.34,0.00029863,3]
[368519530,1751194321741,-490.0,0.00029863,3]
[368519531,1751194321752,-490.0,0.00029863,3]
[368519532,1751194321764,-522.27,0.00029863,3]
[368519533,1751194321776,-501.36,0.00029863,3]
[368519534,1751194321786,-490.0,0.00029863,3]
[368519535,1751194321796,-509.23226591,0.00029863,3]
[368519536,1751194321806,-648.51,0.00029863,3]
[368519537,1751194321817,-803.16,0.00029863,3]
[368519538,1751194321828,-1313.11,0.00029863,3]
[368519539,1751194321838,-490.0,0.00029863,3]
[368519540,1751194321847,-490.0,0.00029863,3]
[368519541,1751194321857,-751.58,0.00029863,3]
[368519542,1751194321867,-648.86,0.00029863,3]
[368519543,1751194321876,-1739.9,0.00029863,3]
[368519544,1751194321887,-514.77,0.00029863,3]
[368519545,1751194321898,-171.21276762,0.00029863,3]
[368519546,1751194321908,-490.0,0.00029863,3]
[368519547,1751194321919,-1125.58,0.00029863,3]
[368519548,1751194321929,-667.65,0.00029863,3]
[368519549,1751194321939,-1097.79,0.00029863,3]
[368519550,1751194321949,-745.5,0.00029863,3]
[368519551,1751194321958,-492.31,0.00029863,3]
[368519552,1751194321968,-490.0,0.00029863,3]
[368519553,1751194321984,-641.45,0.00029863,3]
[368519554,1751194321995,-847.7,0.00029863,3]
[368519555,1751194322006,-1986.36,0.00029863,3]
[368519556,1751194322017,-810.14,0.00029863,3]
[368519557,1751194322027,-613.92,0.00029863,3]
[368519558,1751194322037,-568.22,0.00029863,3]
[368519559,1751194322047,-490.0,0.00029863,3]
[368519560,1751194322057,-490.0,0.00029863,3]
[368519561,1751194322067,-682.37,0.00029863,3]
[368519562,1751194322078,-703.34,0.00029863,3]
[368519563,1751194322087,-490.0,0.00029863,3]
[368519564,1751194322096,-1604.97,0.00029863,3]
[368519565,1751194322107,-611.61,0.00029863,3]
[368519566,1751194322117,-1548.89,0.00029863,3]
[368519567,1751194322127,-490.0,0.00029863,3]
[368519568,1751194322137,-490.0,0.00029863,3]
[368519569,1751194322148,-648.53,0.00029863,3]
[368519570,1751194322159,-490.0,0.00029863,3]
[368519571,1751194322169,-929.36,0.00029863,3]
[368519572,1751194322179,-490.0,0.00029863,3]
[368519573,1751194322188,-490.0,0.00029863,3]
[368519574,1751194322199,-490.0,0.00029863,3]
[368519575,1751194322210,-490.0,0.00029863,3]
[368519576,1751194322221,-708.68,0.00029863,3]
[368519577,1751194322231,-490.0,0.00029863,3]
[368519578,1751194322240,-490.0,0.00029863,3]
[368519579,1751194322333,-490.0,0.00029863,3]
[368519580,1751194322345,-490.0,0.00029863,3]
[368519581,1751194322357,-490.0,0.00029863,3]
[368519582,1751194322368,-1367.54,0.00029863,3]
[368519583,1751194322378,-1196.86,0.00029863,3]
[368519584,1751194322388,-946.15,0.00029863,3]
[368519585,1751194322397,-490.0,0.00029863,3]
[368519586,1751194322408,-490.0,0.00029863,3]
[368519587,1751194322418,-490.0,0.00029863,3]
[368519588,1751194322428,-887.21,0.00029863,3]
[368519589,1751194322438,-151.0,0.00029863,7]
[368519590,1751194322448,-1881.05,0.00029863,3]
[368519591,1751194322461,-490.0,0.00029863,3]
[368519592,1751194322471,-490.0,0.00029863,3]
[368519593,1751194322482,-680.84,0.00029863,3]
[368519594,1751194322491,-616.22,0.00029863,3]
[368519595,1751194322501,-490.0,0.00029863,3]
[368519596,1751194322511,-1625.01,0.00029863,3]
[368519597,1751194322523,-684.45,0.00029863,3]
[368519598,1751194322533,-211.504467,0.00029863,7]
[368519599,1751194322543,-578.97,0.00029863,3]
[368519600,1751194322553,-534.15,0.00029863,3]
[368519601,1751194322563,-151.0,0.00029863,7]
[368519602,1751194322572,-490.0,0.00029863,3]
[368519603,1751194322582,-490.0,0.00029863,3]
[368519604,1751194322591,-490.0,0.00029863,3]
[368519605,1751194322601,-490.0,0.00029863,3]
[368519606,1751194322611,-871.36,0.00029863,3]
[368519607,1751194322621,-529.2,0.00029863,3]
[368519608,1751194322631,-151.0,0.00029863,7]
[368519609,1751194322642,-151.0,0.00029863,7]
[368519610,1751194322651,-612.59,0.00029863,3]
[368519611,1751194322662,-1690.95,0.00029863,3]
[368519612,1751194322672,-499.86,0.00029863,3]
[368519613,1751194322682,-972.25,0.00029863,3]
[368519614,1751194322692,-933.91,0.00029863,3]
[368519615,1751194322702,-983.04,0.00029863,3]
[368519616,1751194322712,-1999.98,0.00029863,3]
[368519617,1751194322722,-567.17,0.00029863,3]
[368519618,1751194322733,-747.2,0.00029863,3]
[368519619,1751194322743,-3120.96,0.00029863,3]
[368519620,1751194322755,-1080.24,0.00029863,3]
[368519621,1751194322766,-1141.22,0.00029863,3]
[368519622,1751194322776,-5234.52,0.00029863,3]
[368519623,1751194322786,-723.63,0.00029863,3]
[368519624,1751194322796,-1156.07,0.00029863,3]
[368519625,1751194322806,-677.66,0.00029863,3]
[368519626,1751194322816,-6702.81,0.00029863,3]
[368519627,1751194322826,-490.0,0.00029863,3]
[368519628,1751194322837,-534.04,0.00029863,3]
[368519629,1751194322846,-1366.91,0.00029863,3]
[368519630,1751194322857,-5532.56,0.00029863,3]
[368519631,1751194322866,-490.0,0.00029863,3]
[368519632,1751194322877,-873.47,0.00029863,3]
[368519633,1751194322887,-795.02175,0.00029863,3]
[368519634,1751194322898,-1135.48,0.00029863,3]
[368519635,1751194322909,-3684.53,0.00029863,3]
[368519636,1751194322919,-1476.15,0.00029863,3]
[368519637,1751194322930,-490.0,0.00029863,3]
[368519638,1751194322939,-1511.71,0.00029863,3]
[368519639,1751194322949,-490.0,0.00029863,3]
[368519640,1751194322959,-103112.27,0.00029863,3]
[368519641,1751194322968,-827.69,0.00029863,3]
[368519642,1751194322984,-1080.39,0.00029863,3]
[368519643,1751194322994,-3680.78,0.00029863,3]
[368519644,1751194323003,-657.08,0.00029863,3]
[368519645,1751194323013,-151.0,0.00029863,7]
[368519646,1751194323023,-818.64,0.00029863,3]
[368519647,1751194323034,-1084.7,0.00029863,3]
[368519648,1751194323044,-1676.03,0.00029863,3]
[368519649,1751194323054,-1841.91,0.00029863,3]
[368519650,1751194323065,-808.31,0.00029863,3]
[368519651,1751194323075,-1771.19,0.00029863,3]
[368519652,1751194323086,-777.13,0.00029863,3]
[368519653,1751194323098,-1397.73,0.00029863,3]
[368519654,1751194323110,-1103.86,0.00029863,3]
[368519655,1751194323120,-577.88,0.00029863,3]
[368519656,1751194323130,-2621.52,0.00029863,3]
[368519657,1751194323140,-490.0,0.00029863,3]
[368519658,1751194323151,-490.0,0.00029863,3]
[368519659,1751194323162,-490.0,0.00029863,3]
[368519660,1751194323172,-1009.96,0.00029863,3]
[368519661,1751194323182,-1009.67,0.00029863,3]
[368519662,1751194323192,-1391.51,0.00029863,3]
[368519663,1751194323202,-490.0,0.00029863,3]
[368519664,1751194323212,-490.0,0.00029863,3]
[368519665,1751194323222,-203.38515235,0.00029863,3]
[368519666,1751194323231,-582.09909,0.00029863,3]
[368519667,1751194323242,-625.681203,0.00029863,3]
[368519668,1751194323252,-2403.19,0.00029863,3]
[368519669,1751194323262,-963.8,0.00029863,3]
[368519670,1751194323272,-504.64,0.00029863,3]
[368519671,1751194323281,-534.96,0.00029863,3]
[368519672,1751194323291,-796.93,0.00029863,3]
[368519673,1751194323300,-150.0,0.00029863,3]
[368519674,1751194323310,-1622.82,0.00029863,3]
[368519675,1751194323319,-1469.3,0.00029863,3]
[368519676,1751194323328,-1096.54,0.00029863,3]
[368519677,1751194323339,-496.03,0.00029863,3]
[368519678,1751194323348,-867.3,0.00029863,3]
[368519679,1751194323359,-994.82,0.00029863,3]
[368519680,1751194323368,-585.7,0.00029863,3]
[368519681,1751194323378,-490.0,0.00029863,3]
[368519682,1751194323388,-986.61,0.00029863,3]
[368519683,1751194323398,-1445.24,0.00029863,3]
[368519684,1751194323408,-1284.88,0.00029863,3]
[368519685,1751194323418,-1733.58,0.00029863,3]
[368519686,1751194323428,-1113.61,0.00029863,3]
[368519687,1751194323438,-765.718893,0.00029863,3]
[368519688,1751194323448,-5329.02,0.00029863,3]
[368519689,1751194323458,-711.13,0.00029863,3]
[368519690,1751194323467,-1340.55,0.00029863,3]
[368519691,1751194323477,-546.693834,0.00029863,3]
[368519692,1751194323488,-490.0,0.00029863,3]
[368519693,1751194323498,-150.0,0.00029863,3]
[368519694,1751194323509,-529.494333,0.00029863,3]
[368519695,1751194323519,-500.0,0.00029863,3]
[368519696,1751194323529,-2678.7,0.00029863,3]
[368519697,1751194323539,-490.0,0.00029863,3]
[368519698,1751194323549,-3083.58,0.00029863,3]
[368519699,1751194323558,-490.0,0.00029863,3]
[368519700,1751194323568,-795.8,0.00029863,3]
[368519701,1751194323578,-490.0,0.00029863,3]
[368519702,1751194323587,-490.0,0.00029863,3]
[368519703,1751194323597,-2825.66,0.00029863,3]
[368519704,1751194323607,-765.55,0.00029863,3]
[368519705,1751194323616,-151.0,0.00029863,7]
[368519706,1751194323626,-956.04,0.00029863,3]
[368519707,1751194323636,-490.0,0.00029863,3]
[368519708,1751194323647,-299.63324582,0.00029863,3]
[368519709,1751194323656,-151.0,0.00029863,7]
[368519710,1751194323666,-1905.65,0.00029863,3]
[368519711,1751194323677,-14415.41,0.00029863,3]
[368519712,1751194323687,-561.38,0.00029863,3]
[368519713,1751194323696,-1701.67,0.00029863,3]
[368519714,1751194323706,-496.82,0.00029863,3]
[368519715,1751194323716,-1039.13,0.00029863,3]
[368519716,1751194323725,-2176.77,0.00029863,3]
[368519717,1751194323736,-225.07793971,0.00029863,3]
[368519718,1751194323745,-1044.7,0.00029863,3]
[368519719,1751194323755,-684.856176,0.00029863,3]
[368519720,1751194323766,-1903.71,0.00029863,3]
[368519721,1751194323776,-490.0,0.00029863,3]
[368519722,1751194323786,-490.0,0.00029863,3]
[368519723,1751194323796,-467.660477,0.00029863,3]
[368519724,1751194323806,-1422.17,0.00029863,3]
[368519725,1751194323816,-469.899209,0.00029863,3]
[368519726,1751194323825,-830.33,0.00029863,3]
[368519727,1751194323835,-1130.93,0.00029863,3]
[368519728,1751194323845,-604.44,0.00029863,3]
[368519729,1751194323855,-671.05,0.00029863,3]
[368519730,1751194323865,-2670.56,0.00029863,3]
[368519731,1751194323875,-1572.11,0.00029863,3]
[368519732,1751194323885,-1991.26,0.00029863,3]
[368519733,1751194323895,-875.56,0.00029863,3]
[368519734,1751194323905,-490.0,0.00029863,3]
[368519735,1751194323915,-490.0,0.00029863,3]
[368519736,1751194323925,-498.72,0.00029863,3]
[368519737,1751194323935,-583.28,0.00029863,3]
[368519738,1751194323946,-3811.43,0.00029863,3]
[368519739,1751194323956,-1354.26,0.00029863,3]
[368519740,1751194323966,-490.0,0.00029863,3]
[368519741,1751194323981,-671.44,0.00029863,3]
[368519742,1751194323992,-1567.24,0.00029863,3]
[368519743,1751194324002,-1471.91,0.00029863,3]
[368519744,1751194324014,-490.0,0.00029863,3]
[368519745,1751194324024,-480.22316521,0.00029863,3]
[368519746,1751194324034,-8384.64,0.00029863,3]
[368519747,1751194324045,-585.551072,0.00029863,3]
[368519748,1751194324055,-401.574256,0.00029863,3]
[368519749,1751194324065,-2859.9,0.00029863,3]
[368519750,1751194324076,-583.43,0.00029863,3]
[368519751,1751194324086,-1275.82,0.00029863,3]
[368519752,1751194324097,-490.0,0.00029863,3]
[368519753,1751194324107,-410.400602,0.00029863,3]
[368519754,1751194324118,-1218.96,0.00029863,3]
[368519755,1751194324128,-942.64,0.00029863,3]
[368519756,1751194324139,-490.0,0.00029863,3]
[368519757,1751194324150,-2671.04,0.00029863,3]
[368519758,1751194324160,-490.0,0.00029863,3]
[368519759,1751194324170,-490.0,0.00029863,3]
[368519760,1751194324180,-1387.28,0.00029863,3]
[368519761,1751194324191,-2549.36,0.00029863,3]
[368519762,1751194324202,-490.0,0.00029863,3]
[368519763,1751194324212,-490.0,0.00029863,3]
[368519764,1751194324222,-853.61,0.00029863,3]
[368519765,1751194324232,-760.82,0.00029863,3]
[368519766,1751194324243,-1639.16,0.00029863,3]
[368519767,1751194324253,-2657.31,0.00029863,3]
[368519768,1751194324264,-990.85,0.00029863,3]
[368519769,1751194324274,-543.89,0.00029863,3]
[368519770,1751194324284,-151.0,0.00029863,7]
[368519771,1751194324294,-523.02,0.00029863,3]
[368519772,1751194324304,-1634.17,0.00029863,3]
[368519773,1751194324314,-888.23,0.00029863,3]
[368519774,1751194324324,-359.48083,0.00029863,3]
[368519775,1751194324334,-1835.93,0.00029863,3]
[368519776,1751194324344,-1671.08,0.00029863,3]
[368519777,1751194324354,-488.44764,0.00029863,3]
[368519778,1751194324365,-490.0,0.00029863,3]
[368519779,1751194324375,-1461.04,0.00029863,3]
[368519780,1751194324385,-4544.23,0.00029863,3]
[368519781,1751194324396,-1479.81,0.00029863,3]
[368519782,1751194324406,-490.0,0.00029863,3]
[368519783,1751194324416,-490.0,0.00029863,3]
[368519784,1751194324426,-517.92,0.00029863,3]
[368519785,1751194324437,-490.0,0.00029863,3]
[368519786,1751194324450,-3742.15,0.00029863,3]
[368519787,1751194324460,-2334.39,0.00029863,3]
[368519788,1751194324470,-1735.89,0.00029863,3]
[368519789,1751194324480,-1221.22,0.00029863,3]
[368519790,1751194324490,-3469.82,0.00029863,3]
[368519791,1751194324501,-1554.46,0.00029863,3]
[368519792,1751194324511,-1709.39,0.00029863,3]
[368519793,1751194324521,-490.0,0.00029863,3]
[368519794,1751194324531,-1302.99,0.00029863,3]
[368519795,1751194324541,-490.0,0.00029863,3]
[368519796,1751194324552,-342.462824,0.00029863,3]
[368519797,1751194324562,-621.54,0.00029863,3]
[368519798,1751194324572,-1449.85,0.00029863,3]
[368519799,1751194324582,-1404.73,0.00029863,3]
[368519800,1751194324592,-403.83972,0.00029863,3]
[368519801,1751194324602,-2739.35,0.00029863,3]
[368519802,1751194324613,-1147.69,0.00029863,3]
[368519803,1751194324623,-677.47,0.00029863,3]
[368519804,1751194324633,-1983.22,0.00029863,3]
[368519805,1751194324643,-490.0,0.00029863,3]
[368519806,1751194324653,-151.0,0.00029863,7]
[368519807,1751194324663,-209.8355726,0.00029863,3]
[368519808,1751194324672,-151.0,0.00029863,7]
[368519809,1751194324683,-2990.15,0.00029863,3]
[368519810,1751194324693,-490.0,0.00029863,3]
[368519811,1751194324703,-1337.18,0.00029863,3]
[368519812,1751194324714,-2817.39,0.00029863,3]
[368519813,1751194324724,-552.49,0.00029863,3]
[368519814,1751194324734,-1850.59,0.00029863,3]
[368519815,1751194324743,-151.0,0.00029863,7]
[368519816,1751194324754,-3507.44,0.00029863,3]
[368519817,1751194324763,-500.0,0.00029863,2]
[368519818,1751194324774,-564.85799316,0.00029863,3]
[368519819,1751194324784,-2114.83,0.00029863,3]